Workbook

Sheet DFV
F3: Table I
F4: Dynamic Friction Value Categories
F5: Category | H5: DFV | V5: 20 | W5: LDFV VI
F6: HDFV I | H6: 50 | V6: 25 | W6: SDFV V
F7: HDFV II | H7: 45 | V7: 30 | W7: SDFV IV
F8: HDFV III | H8: 40 | V8: 40 | W8: HDFV III
F9: SDFV IV | H9: 30 | V9: 45 | W9: HDFV II
F10: SDFV V | H10: 25 | V10: 50 | W10: HDFV I
F11: LDFV VI | H11: 20
F13: AGGREGATE, PERCENT PASSING
D14: Sieve | H14: #7 | I14: #8 | J14: #89 | K14: #10 | L14: Sand | M14: RAP2 | N14: Combo
D15: 19 mm | H15: 91 | I15: 100 | J15: 100 | K15: 100 | L15: 100 | M15: 100 | N15: =AshRound(SUMPRODUCT(F15:M15,F$23:M$23)/$N$23,1) -> 97.3
D16: 12.5 mm | H16: 88 | I16: 100 | J16: 100 | K16: 100 | L16: 100 | M16: 94 | N16: =AshRound(SUMPRODUCT(F16:M16,F$23:M$23)/$N$23,1) -> 94.9
D17: 9.5 mm | H17: 63 | I17: 89 | J17: 98 | K17: 100 | L17: 100 | M17: 86 | N17: =AshRound(SUMPRODUCT(F17:M17,F$23:M$23)/$N$23,1) -> 83.2
D18: 4.75 mm | H18: 15 | I18: 23 | J18: 61 | K18: 95 | L18: 98 | M18: 75 | N18: =AshRound(SUMPRODUCT(F18:M18,F$23:M$23)/$N$23,1) -> 51.6
D19: 2.36 mm | H19: 4 | I19: 5 | J19: 15 | K19: 63 | L19: 96 | M19: 65 | N19: =AshRound(SUMPRODUCT(F19:M19,F$23:M$23)/$N$23,1) -> 34.2
D21: + 9.5 | E21: mm | F21: =100-F17 -> 100 | G21: 100 | H21: 37 | I21: 11 | J21: 2 | K21: 0 | L21: 0 | M21: 14
D22: DFV | F22: 0 | G22: 0 | H22: 45 | I22: 25 | J22: 25 | K22: 25 | L22: 25 | M22: 30
E23: % AGG | F23: 0 | G23: 0 | H23: 30 | I23: 20 | J23: 0 | K23: 25 | L23: 0 | M23: 25 | N23: =SUM(F23:M23) -> 100 | O23: Your AGG Percentages do not = 100%
D25: % Coarse of Agg | F25: =AshRound((F23*F21)/$N$23,1) -> 0 | G25: 0 | H25: 11.1 | I25: 2.2 | J25: 0 | K25: 0 | L25: 0 | M25: =IF(M21<15,0,AshRound((M23*M21)/$N$23,1)) -> 0 | N25: =SUM(F25:M25) -> 13.3 | O25: % Coarse Agg
D26: DFV Contribution | F26: =AshRound((F25/$N$25)*F22,1) -> 0 | G26: 0 | H26: 37.6 | I26: 4.1 | J26: 0 | K26: 0 | L26: 0 | M26: 0 | N26: =AshRound(SUM(F26:M26),1) -> 41.7 | O26: Total DFV
F27: =IF(N26>=20,"Your Agg. Combo falls into "&VLOOKUP(N26,V5:W10,2)&" category."," ") -> Your Agg. Combo falls into HDFV III category.

Sheet F&E Log#
B1: Log Number: | F1: Quarry Name:
B2: Tested By: | F2: Plant Number :
B3: Material Size: | F3: Charge Number: | H3: Date Started:
B5: GRADATION (ASTM C136)
B6: STARTING Weight (gram) | C6: 5230
B7: SIEVES | C7: WEIGHT. RETAINED | D7: WEIGHT PASSING | E7: % PASS
B8: 1" | C8: 0 | D8: =C6-C8 -> 5230 | E8: =AshRound(D8/$C$6,$H$47)*100 -> 100
B9: 3/4" | C9: 0 | D9: =D8-C9 -> 5230 | E9: =AshRound(D9/$C$6,$H$47)*100 -> 100
B10: 1/2" | C10: 420 | D10: =D9-C10 -> 4810 | E10: =AshRound(D10/$C$6,$H$47)*100 -> 92
B11: 3/8" | C11: 2720 | D11: 2090 | E11: =AshRound(D11/$C$6,$H$47)*100 -> 40
B12: # 4 | C12: 1840 | D12: 250 | E12: =AshRound(D12/$C$6,$H$47)*100 -> 4.8
B13: Split Sample Weight (gram) | C13: 456.5
B14: # 8 | C14: 200.6 | D14: =C13-C14 -> 255.9 | E14: =AshRound((D14/$C$13)*($D$12/$C$6),$H$47)*100 -> 2.7
B15: # 16 | C15: 16.1 | D15: =D14-C15 -> 239.8 | E15: 2.5
B16: # 30 | C16: 13.5 | D16: =D15-C16 -> 226.3 | E16: 2.4
B17: # 50 | C17: 17.8 | D17: 208.5 | E17: 2.2
B18: # 100 | C18: 21.1 | D18: 187.4 | E18: 2
B19: # 200 | C19: 34.1 | D19: 153.3 | E19: 1.6
B21: FLAT & ELONGATED PARTICLES - Method B, ASTM D 4791 (5:1)
B23: SIZE FRACTION | C23: SAMPLE Grading [a][b] | D23: No. of PARTICLES | E23: MASS TESTED | F23: MASS of F&E | G23: % F & E | H23: WEIGHTED % F&E (c) | I23: MDSHA SPECIFICATION[1]
B24: 1" x 3/4" | C24: =AshRound(C9/($C$6-$D$12),$H$47) -> 0 | G24: =IF(AND(F24<>"",F24<>"Not Tested"),AshRound((F24/E24),$H$47)*100,"-") -> - | H24: =IF(AND(G24>0,G24<>"-"),AshRound(G24*C24,$H$48),"-") -> - | I24: -
B25: 3/4" x 1/2" | C25: =AshRound(C10/($C$6-$D$12),$H$47) -> 0.084 | D25: - | E25: - | F25: Not Tested | G25: =IF(AND(F25<>"",F25<>"Not Tested"),AshRound((F25/E25),$H$47)*100,"-") -> - | H25: =IF(AND(G25>0,G25<>"-"),AshRound(G25*C25,$H$48),"-") -> - | I25: -
B26: 1/2" x 3/8" | C26: =AshRound(C11/($C$6-$D$12),$H$47) -> 0.546 | D26: 102 | E26: 198.6 | F26: 0 | G26: =IF(AND(F26<>"",F26<>"Not Tested"),AshRound((F26/E26),$H$47)*100,"-") -> 0 | H26: =IF(AND(G26>0,G26<>"-"),AshRound(G26*C26,$H$48),"-") -> - | I26: -
B27: 3/8" x #4 | C27: =AshRound(C12/($C$6-$D$12),$H$47) -> 0.369 | D27: 105 | E27: 75.9 | F27: 4.2 | G27: =IF(AND(F27<>"",F27<>"Not Tested"),AshRound((F27/E27),$H$47)*100,"-") -> 5.5 | H27: =IF(AND(G27>0,G27<>"-"),AshRound(G27*C27,$H$48),"-") -> 2
G28: F&E (5:1) | H28: =SUM(H24:H27) -> 2 | I28: 5% max on the blend
B31: FLAT & ELONGATED PARTICLES - Method B, ASTM D 4791 ( B @ 3:1)
B33: SIZE FRACTION | C33: SAMPLE Grading [a][b] | D33: No. of PARTICLES | E33: MASS TESTED | F33: MASS of F&E | G33: % F & E | H33: WEIGHTED % F&E (c) | I33: MDSHA SPECIFICATION[1]
B34: 1" x 3/4" | C34: =AshRound(C9/($C$6-$D$12),$H$47) -> 0 | G34: =IF(AND(F34<>"",F34<>"Not Tested"),AshRound((F34/E34),$H$47)*100,"-") -> - | H34: =IF(AND(G34>0,G34<>"-"),AshRound(G34*C34,$H$48),"-") -> - | I34: -
B35: 3/4" x 1/2" | C35: =AshRound(C10/($C$6-$D$12),$H$47) -> 0.084 | D35: - | E35: - | F35: Not Tested | G35: =IF(AND(F35<>"",F35<>"Not Tested"),AshRound((F35/E35),$H$47)*100,"-") -> - | H35: =IF(AND(G35>0,G35<>"-"),AshRound(G35*C35,$H$48),"-") -> - | I35: -
B36: 1/2" x 3/8" | C36: =AshRound(C11/($C$6-$D$12),$H$47) -> 0.546 | D36: 102 | E36: 198.6 | F36: 48.3 | G36: =IF(AND(F36<>"",F36<>"Not Tested"),AshRound((F36/E36),$H$47)*100,"-") -> 24.3 | H36: =IF(AND(G36>0,G36<>"-"),AshRound(G36*C36,$H$48),"-") -> 13.3 | I36: -
B37: 3/8" x #4 | C37: =AshRound(C12/($C$6-$D$12),$H$47) -> 0.369 | D37: 105 | E37: 75.9 | F37: 27.8 | G37: =IF(AND(F37<>"",F37<>"Not Tested"),AshRound((F37/E37),$H$47)*100,"-") -> 36.6 | H37: =IF(AND(G37>0,G37<>"-"),AshRound(G37*C37,$H$48),"-") -> 13.5
G38: F&E (3:1) | H38: =SUM(H34:H37) -> 26.8 | I38: 20 % max on the blend
B40: Nominal Maximum Size in.(mm) | D40: Minimum Mass of Test Sample.
B41: 1” (25.0mm) | D41: 22 lb (10 kg)
B42: 3/4” (19.0mm) | D42: 11 lb ( 5 kg)
B43: 1/2” (12.5mm) | D43: 4 lb ( 2 kg)
B44: 3/8” (9.5mm) | D44: 2 lb ( 1 kg)
B45: Note: [1] Maryland Department of Transportation - SHA State Highway Administration - Standard Specifications for Construction and Materials..
B46: Note: [a] Percentage Retained based upon Coarse Aggregate weight.
B47: ="Note: [b] Calculations rounded in Accordance with AASHTO E29 using "&H47&" digits." -> Note: [b] Calculations rounded in Accordance with AASHTO E29 using 3 digits. | H47: 3
B48: ="Note: [c] Calculations rounded in Accordance with AASHTO E29 using "&H48&" digits." -> Note: [c] Calculations rounded in Accordance with AASHTO E29 using 1 digits. | H48: 1

Sheet 124001 (hidden)
A1: Log Number: | C1: 124001 | E1: Quarry Name: | F1: Vulcan - Havre de Grace
A2: Tested By: | C2: AW | E2: Plant Number : | F2: 151
A3: Material Size: | C3: HP-7 | E3: Charge Number: | G3: Date Started: | H3: 2012-09-14
A5: GRADATION (ASTM C136)
A6: STARTING Weight (gram) | B6: 5230
A7: SIEVES | B7: WEIGHT. RETAINED | C7: WEIGHT PASSING | D7: % PASS
A8: 1" | B8: 0 | C8: =B6-B8 -> 5230 | D8: =(C8/$B$6)*100 -> 100
A9: 3/4" | B9: 0 | C9: =C8-B9 -> 5230 | D9: =(C9/$B$6)*100 -> 100
A10: 1/2" | B10: 420 | C10: =C9-B10 -> 4810 | D10: 91.96940727
A11: 3/8" | B11: 2720 | C11: 2090 | D11: 39.96175908
A12: # 4 | B12: 1840 | C12: 250 | D12: 4.780114723
A13: Split Sample Weight (gram) | B13: 456.5
A14: # 8 | B14: 200.6 | C14: =B13-B14 -> 255.9 | D14: =(C14/$B$13)*$D$12 -> 2.679586764
A15: # 16 | B15: 16.1 | C15: =C14-B15 -> 239.8 | D15: =(C15/$B$13)*$D$12 -> 2.511000023
A16: # 30 | B16: 13.5 | C16: =C15-B16 -> 226.3 | D16: 2.36963847
A17: # 50 | B17: 17.8 | C17: 208.5 | D17: 2.183250646
A18: # 100 | B18: 21.1 | C18: 187.4 | D18: 1.962307774
A19: # 200 | B19: 34.1 | C19: 153.3 | D19: 1.605238964
A21: FLAT & ELONGATED PARTICLES - Method B, ASTM D 4791 (5:1)
A23: SIZE FRACTION | B23: SAMPLE Grading [a] | C23: No. of PARTICLES | D23: MASS TESTED | E23: MASS of F&E | F23: % F & E | G23: WEIGHTED % F&E | H23: MDSHA SPECIFICATION[1]
A24: 1" x 3/4" | B24: =B9/($B$6-$C$12) -> 0 | G24: 0 | H24: -
A25: 3/4" x 1/2" | B25: =B10/($B$6-$C$12) -> 0.0843373494 | C25: - | D25: - | E25: Not Tested | F25: - | G25: 0 | H25: -
A26: 1/2" x 3/8" | B26: 0.546184739 | C26: 102 | D26: 198.6 | E26: 0 | F26: =(E26/D26)*100 -> 0 | G26: =F26*B26 -> 0 | H26: -
A27: 3/8" x #4 | B27: =B12/($B$6-$C$12) -> 0.3694779116 | C27: 105 | D27: 75.9 | E27: 4.2 | F27: =(E27/D27)*100 -> 5.533596838 | G27: =F27*B27 -> 2.044541804
F28: F&E (5:1) | G28: =SUM(G24:G27) -> 2.044541804 | H28: 5% max on the blend
A31: FLAT & ELONGATED PARTICLES - Method B, ASTM D 4791 ( B @ 3:1)
A33: SIZE FRACTION | B33: SAMPLE Grading [a] | C33: No. of PARTICLES | D33: MASS TESTED | E33: MASS of F&E | F33: % F & E | G33: WEIGHTED % F&E (E)*** | H33: MDSHA SPECIFICATION[1]
A34: 1" x 3/4" | B34: =B9/($B$6-$C$12) -> 0 | G34: 0 | H34: -
A35: 3/4" x 1/2" | B35: =B10/($B$6-$C$12) -> 0.0843373494 | C35: - | D35: - | E35: Not Tested | F35: - | G35: 0 | H35: -
A36: 1/2" x 3/8" | B36: 0.546184739 | C36: 102 | D36: 198.6 | E36: 48.3 | F36: =(E36/D36)*100 -> 24.32024169 | G36: =F36*B36 -> 13.28334486 | H36: -
A37: 3/8" x #4 | B37: 0.3694779116 | C37: 105 | D37: 75.9 | E37: 27.8 | F37: =(E37/D37)*100 -> 36.62714097 | G37: =F37*B37 -> 13.53291956
F38: F&E (3:1) | G38: =SUM(G34:G37) -> 26.81626442 | H38: 20 % max on the blend
A40: Nominal Maximum Size in.(mm) | C40: Minimum Mass of Test Sample.
A41: 1” (25.0mm) | C41: 22 lb (10 kg)
A42: 3/4” (19.0mm) | C42: 11 lb ( 5 kg)
A43: 1/2” (12.5mm) | C43: 4 lb ( 2 kg)
A44: 3/8” (9.5mm) | C44: 2 lb ( 1 kg)
A45: Note: [1] Maryland Department of Transportation - SHA State Highway Administration - Standard Specifications for Construction and Materials..
A46: Note: [a] Percentage Retained based upon Coarse Aggregate weight.

Sheet F&E Blend Calc
D2: Blend F&E Calibration
E6: 0.09 | F6: 0.18 | G6: 0.27 | H6: 0.15 | I6: 0.11 | J6: 0.1 | K6: 0.1 | L6: =SUM(E6:K6) -> 1
D7: Sieve | E7: ACE #5 | F7: ACE #7 | G7: ACE #8 | H7: ACE #89 | I7: ACE C#89 | J7: Acme 10's | K7: RAP | L7: Blend
D8: 50 mm | E8: 100 | F8: 100 | G8: 100 | H8: 100 | I8: 100 | J8: 100 | K8: 100 | L8: =AshRound(E8*E$6+F8*F$6+G8*G$6+H8*H$6+I8*I$6+J8*J$6+K8*K$6,1) -> 100
D9: 37.5 mm | E9: 100 | F9: 100 | G9: 100 | H9: 100 | I9: 100 | J9: 100 | K9: 100 | L9: =AshRound(E9*E$6+F9*F$6+G9*G$6+H9*H$6+I9*I$6+J9*J$6+K9*K$6,1) -> 100
D10: 25 mm | E10: 100 | F10: 100 | G10: 100 | H10: 100 | I10: 100 | J10: 100 | K10: 100 | L10: 100
D11: 19 mm | E11: 89.6 | F11: 100 | G11: 100 | H11: 100 | I11: 100 | J11: 100 | K11: 100 | L11: 99.1
D12: 12.5 mm | E12: 35.9 | F12: 94 | G12: 100 | H12: 100 | I12: 100 | J12: 100 | K12: 100 | L12: 93.2
D13: 9.5 mm | E13: 12.6 | F13: 50 | G13: 95 | H13: 100 | I13: 100 | J13: 100 | K13: 94 | L13: 81.2
D14: 4.75 mm | E14: 3.5 | F14: 9 | G14: 20 | H14: 92 | I14: 87 | J14: 91 | K14: 69 | L14: 46.7
D15: 2.36 mm | E15: 2.9 | F15: 4 | G15: 5 | H15: 26 | I15: 51 | J15: 65 | K15: 50 | L15: 23.3
D16: 1.18 mm | E16: 2.4 | F16: 3 | G16: 2.7 | H16: 5.7 | I16: 29 | J16: 44 | K16: 38 | L16: 13.7
D17: 600 µm | E17: 2 | F17: 2.5 | G17: 2.1 | H17: 3.1 | I17: 17 | J17: 32 | K17: 31 | L17: 9.8
D18: 300 µm | E18: 1.5 | F18: 2.3 | G18: 1.8 | H18: 2.5 | I18: 9.9 | J18: 24 | K18: 21.4 | L18: 7
D19: 150 µm | E19: 1.3 | F19: 1.6 | G19: 1.7 | H19: 2.2 | I19: 6.1 | J19: 19 | K19: 14.5 | L19: 5.2
D20: 75 µm | E20: 1.2 | F20: 1.4 | G20: 1.6 | H20: 2 | I20: 4.5 | J20: 14.4 | K20: 11 | L20: 4.1
B22: FALSE | D22: C.A. Cont | E22: =AshRound(IF(AND($B$23,$B$22),E33/$L$33,IF($B$23,E32/$L$32,IF($B$22,E31/$L$31,E30/$L$30))),3) -> 0.163 | F22: =AshRound(IF(AND($B$23,$B$22),F33/$L$33,IF($B$23,F32/$L$32,IF($B$22,F31/$L$31,F30/$L$30))),3) -> 0.308 | G22: 0.405 | H22: 0.023 | I22: 0.026 | J22: 0.017 | K22: 0.058
B23: FALSE
D24: F&E | E24: 5 | F24: 19 | G24: 17.9 | H24: 0.5 | I24: 0.5 | J24: 2 | K24: 3.2
F27: F&E | G27: =AshRound(SUMPRODUCT(E22:K22,E24:K24),1) -> 14.2
C30: No 10% Rule | E30: =AshRound((100-E14)*E6,1) -> 8.7 | F30: =AshRound((100-F14)*F6,1) -> 16.4 | G30: 21.6 | H30: 1.2 | I30: 1.4 | J30: 0.9 | K30: 3.1 | L30: =SUM(E30:K30) -> 53.3
C31: 10% C.F. Rule | E31: =IF(E6>=0.1,AshRound((100-E14)*E6,1),0) -> 0 | F31: =IF(F6>=0.1,AshRound((100-F14)*F6,1),0) -> 16.4 | G31: 21.6 | H31: 1.2 | I31: 1.4 | J31: 0.9 | K31: 3.1 | L31: =SUM(E31:K31) -> 44.6
C32: 10% C.A. Rule | E32: =IF((100-E14)>=10,AshRound((100-E14)*E6,1),0) -> 8.7 | F32: =IF((100-F14)>=10,AshRound((100-F14)*F6,1),0) -> 16.4 | G32: 21.6 | H32: 0 | I32: 1.4 | J32: 0 | K32: 3.1 | L32: =SUM(E32:K32) -> 51.2
C33: Both 10% Rules | E33: =IF(AND(E6>=0.1,(100-E14)>=10),AshRound((100-E14)*E6,1),0) -> 0 | F33: 16.4 | G33: 21.6 | H33: =IF(AND(H6>=0.1,(100-H14)>=10),AshRound((100-H14)*H6,1),0) -> 0 | I33: =IF(AND(I6>=0.1,(100-I14)>=10),AshRound((100-I14)*I6,1),0) -> 1.4 | J33: 0 | K33: 3.1 | L33: =SUM(E33:K33) -> 42.5

Sheet Blend Calc Org (hidden)
D2: Blend F&E Calibration
E6: 0.1 | F6: 0.09 | G6: 0.27 | H6: 0.15 | I6: 0.18 | J6: 0.1 | K6: 0.11 | L6: =SUM(E6:K6) -> 1
D7: Sieve | E7: 10's | F7: HDG #5 | G7: HDG 8 | H7: HE #6 | I7: HDG #7 | J7: RAP | K7: C HE#6 | L7: Blend
D8: 50 mm | E8: 100 | F8: 100 | G8: 100 | H8: 100 | I8: 100 | J8: 100 | K8: 100 | L8: =AshRound(E8*E$6+F8*F$6+G8*G$6+H8*H$6+I8*I$6+J8*J$6+K8*K$6,1) -> 100
D9: 37.5 mm | E9: 100 | F9: 100 | G9: 100 | H9: 100 | I9: 100 | J9: 100 | K9: 100 | L9: =AshRound(E9*E$6+F9*F$6+G9*G$6+H9*H$6+I9*I$6+J9*J$6+K9*K$6,1) -> 100
D10: 25 mm | E10: 100 | F10: 100 | G10: 100 | H10: 100 | I10: 100 | J10: 100 | K10: 100 | L10: 100
D11: 19 mm | E11: 100 | F11: 89.6 | G11: 100 | H11: 100 | I11: 100 | J11: 100 | K11: 100 | L11: 99.1
D12: 12.5 mm | E12: 100 | F12: 35.9 | G12: 100 | H12: 100 | I12: 94 | J12: 100 | K12: 100 | L12: 93.2
D13: 9.5 mm | E13: 100 | F13: 12.6 | G13: 95 | H13: 100 | I13: 50 | J13: 94 | K13: 100 | L13: 81.2
D14: 4.75 mm | E14: 91 | F14: 3.5 | G14: 20 | H14: 92 | I14: 9 | J14: 69 | K14: 87 | L14: 46.7
D15: 2.36 mm | E15: 65 | F15: 2.9 | G15: 5 | H15: 26 | I15: 4 | J15: 50 | K15: 51 | L15: 23.3
D16: 1.18 mm | E16: 44 | F16: 2.4 | G16: 2.7 | H16: 5.7 | I16: 3 | J16: 38 | K16: 29 | L16: 13.7
D17: 600 µm | E17: 32 | F17: 2 | G17: 2.1 | H17: 3.1 | I17: 2.5 | J17: 31 | K17: 17 | L17: 9.8
D18: 300 µm | E18: 24 | F18: 1.5 | G18: 1.8 | H18: 2.5 | I18: 2.3 | J18: 21.4 | K18: 9.9 | L18: 7
D19: 150 µm | E19: 19 | F19: 1.3 | G19: 1.6 | H19: 2.2 | I19: 1.6 | J19: 14.5 | K19: 6.1 | L19: 5.2
D20: 75 µm | E20: 14.4 | F20: 1.2 | G20: 1.8 | H20: 2 | I20: 1.4 | J20: 11 | K20: 4.5 | L20: 4.2
B22: FALSE | D22: C.A. Cont | E22: =AshRound(IF(AND($B$23,$B$22),E33/$L$33,IF($B$23,E32/$L$32,IF($B$22,E31/$L$31,E30/$L$30))),3) -> 0 | F22: =AshRound(IF(AND($B$23,$B$22),F33/$L$33,IF($B$23,F32/$L$32,IF($B$22,F31/$L$31,F30/$L$30))),3) -> 0.17 | G22: 0.422 | H22: 0 | I22: 0.32 | J22: 0.061 | K22: 0.027
B23: TRUE
D24: F&E | E24: 2 | F24: 5 | G24: 17.9 | H24: 0.5 | I24: 19 | J24: 3.2 | K24: 0.5
E25: =E8-E14 -> 9 | F25: =F8-F14 -> 96.5 | G25: =G8-G14 -> 80 | H25: 8 | I25: 91 | J25: 31 | K25: 13
E26: =E25*E6 -> 0.9 | F26: =F25*F6 -> 8.685 | G26: =G25*G6 -> 21.6 | H26: 1.2 | I26: 16.38 | J26: 3.1 | K26: 1.43
F27: F&E | G27: =AshRound(SUMPRODUCT(E22:K22,E24:K24),1) -> 14.7
C30: No 10% Rule | E30: =AshRound((100-E14)*E6,1) -> 0.9 | F30: =AshRound((100-F14)*F6,1) -> 8.7 | G30: 21.6 | H30: 1.2 | I30: 16.4 | J30: 3.1 | K30: 1.4 | L30: =SUM(E30:K30) -> 53.3 | N30: 14.2
C31: 10% C.F. Rule | E31: =IF(E6>=0.1,AshRound((100-E14)*E6,1),0) -> 0.9 | F31: =IF(F6>=0.1,AshRound((100-F14)*F6,1),0) -> 0 | G31: 21.6 | H31: 1.2 | I31: 16.4 | J31: 3.1 | K31: 1.4 | L31: =SUM(E31:K31) -> 44.6 | N31: 15.9
C32: 10% Cont. Rule | E32: =IF((100-E14)>=10,AshRound((100-E14)*E6,1),0) -> 0 | F32: =IF((100-F14)>=10,AshRound((100-F14)*F6,1),0) -> 8.7 | G32: 21.6 | H32: 0 | I32: 16.4 | J32: 3.1 | K32: 1.4 | L32: =SUM(E32:K32) -> 51.2 | N32: 14.7
C33: Both 10% Rules | E33: =IF(AND(E6>=0.1,(100-E14)>=10),AshRound((100-E14)*E6,1),0) -> 0 | F33: 0 | G33: 21.6 | H33: =IF(AND(H6>=0.1,(100-H14)>=10),AshRound((100-H14)*H6,1),0) -> 0 | I33: =IF(AND(I6>=0.1,(100-I14)>=10),AshRound((100-I14)*I6,1),0) -> 16.4 | J33: 3.1 | K33: 1.4 | L33: =SUM(E33:K33) -> 42.5 | N33: 16.7
C35: No 10% Rule | E35: =E30/$L$30 -> 0.01688555347 | F35: =F30/$L$30 -> 0.1632270169 | G35: 0.4052532833 | H35: 0.02251407129 | I35: 0.3076923077 | J35: 0.05816135084 | K35: 0.02626641651
C36: 10% C.F. Rule | E36: =E31/$L$31 -> 0.0201793722 | F36: =F31/$L$31 -> 0 | G36: 0.4843049327 | H36: 0.0269058296 | I36: 0.3677130045 | J36: 0.06950672646 | K36: 0.03139013453
C37: 10% Cont. Rule | E37: =E32/$L$32 -> 0 | F37: =F32/$L$32 -> 0.169921875 | G37: 0.421875 | H37: 0 | I37: 0.3203125 | J37: 0.060546875 | K37: 0.02734375
C38: =C33 -> Both 10% Rules | E38: =E33/$L$32 -> 0 | F38: 0 | G38: 0.421875 | H38: 0 | I38: 0.3203125 | J38: 0.060546875 | K38: 0.02734375
